[Event "Early-Titled-Tuesday-Blitz-May-14-2024"]
[Site "Chess.com"]
[Date "2024.05.14"]
[Round "9"]
[White "viktorskliarov"]
[Black "DrVelja"]
[Result "1-0"]
[WhiteElo "2695"]
[BlackElo "2921"]
[TimeControl "180+1"]
[EndTime "9:48:18 PDT"]
[Termination "viktorskliarov won by resignation"]

1. e4 {[%clk 0:03:00.9]} 1... c5 {[%clk 0:02:55.6]} 2. Nf3 {[%clk 0:03:00.6]}
2... Nc6 {[%clk 0:02:54.4]} 3. Bb5 {[%clk 0:03:00.3]} 3... g6 {[%clk 0:02:53]}
4. O-O {[%clk 0:03:00.1]} 4... Bg7 {[%clk 0:02:49.8]} 5. Re1 {[%clk 0:03:00.4]}
5... Nf6 {[%clk 0:02:48.7]} 6. e5 {[%clk 0:03:00.7]} 6... Nd5 {[%clk 0:02:47.4]}
7. Nc3 {[%clk 0:03:01.2]} 7... Nc7 {[%clk 0:02:47.3]} 8. Bxc6 {[%clk 0:02:55.3]}
8... dxc6 {[%clk 0:02:48.2]} 9. Ne4 {[%clk 0:02:54]} 9... Ne6 {[%clk 0:02:48.6]}
10. d3 {[%clk 0:02:52.8]} 10... h6 {[%clk 0:02:46.6]} 11. Be3 {[%clk 0:02:44.1]}
11... b6 {[%clk 0:02:46.7]} 12. a3 {[%clk 0:02:41.4]} 12... O-O {[%clk
0:02:43.2]} 13. b4 {[%clk 0:02:40.5]} 13... cxb4 {[%clk 0:02:40.5]} 14. axb4
{[%clk 0:02:40]} 14... Qc7 {[%clk 0:02:39.5]} 15. h4 {[%clk 0:02:09.6]} 15... c5
{[%clk 0:02:27.4]} 16. bxc5 {[%clk 0:01:51.9]} 16... bxc5 {[%clk 0:02:28.3]} 17.
Qc1 {[%clk 0:01:52.1]} 17... Kh7 {[%clk 0:02:27.8]} 18. Qa3 {[%clk 0:01:46.5]}
18... Bb7 {[%clk 0:02:28]} 19. Qa5 {[%clk 0:01:03.5]} 19... Rfc8 {[%clk
0:02:13.4]} 20. c4 {[%clk 0:00:36.1]} 20... Bxe4 {[%clk 0:02:07.2]} 21. Qxc7
{[%clk 0:00:28.9]} 21... Rxc7 {[%clk 0:02:08.1]} 22. dxe4 {[%clk 0:00:29.7]}
22... Rb7 {[%clk 0:02:05.6]} 23. Ra5 {[%clk 0:00:22.5]} 23... Rb4 {[%clk
0:02:05.7]} 24. Rea1 {[%clk 0:00:22.2]} 24... Rxc4 {[%clk 0:02:05.1]} 25. Rxa7
{[%clk 0:00:22.3]} 25... Rxa7 {[%clk 0:02:06]} 26. Rxa7 {[%clk 0:00:22.3]} 26...
Rxe4 {[%clk 0:02:06.6]} 27. Rxe7 {[%clk 0:00:21.7]} 27... c4 {[%clk 0:02:06.2]}
28. Rxf7 {[%clk 0:00:19.5]} 28... c3 {[%clk 0:02:06.6]} 29. Re7 {[%clk
0:00:14.5]} 29... Rxe3 {[%clk 0:01:04.2]} 30. Rxe6 {[%clk 0:00:14.7]} 30... Rd3
{[%clk 0:01:05.1]} 31. Rc6 {[%clk 0:00:14.2]} 31... Kg8 {[%clk 0:01:05.7]} 32.
Kf1 {[%clk 0:00:11.5]} 32... Rd1+ {[%clk 0:01:05]} 33. Ke2 {[%clk 0:00:11.9]}
33... Rc1 {[%clk 0:01:05.9]} 34. Rxg6 {[%clk 0:00:07.9]} 34... Rc2+ {[%clk
0:01:00.2]} 35. Kd3 {[%clk 0:00:07.4]} 35... Rxf2 {[%clk 0:00:59.5]} 36. Kxc3
{[%clk 0:00:07.7]} 36... Kf7 {[%clk 0:00:58.9]} 37. h5 {[%clk 0:00:08.1]} 37...
Ra2 {[%clk 0:00:46.1]} 38. Kd4 {[%clk 0:00:08.1]} 38... Ra4+ {[%clk 0:00:41.9]}
39. Kd5 {[%clk 0:00:08.5]} 39... Ra5+ {[%clk 0:00:40.9]} 40. Ke4 {[%clk
0:00:08.8]} 40... Bf8 {[%clk 0:00:33.1]} 41. Kf5 {[%clk 0:00:08.7]} 41... Rd5
{[%clk 0:00:33.8]} 42. Ra6 {[%clk 0:00:07.6]} 42... Be7 {[%clk 0:00:33.7]} 43.
Ra7 {[%clk 0:00:07]} 43... Rd8 {[%clk 0:00:27.5]} 44. Nh4 {[%clk 0:00:06.2]}
44... Ke8 {[%clk 0:00:24.7]} 45. Ng6 {[%clk 0:00:06.2]} 45... Bg5 {[%clk
0:00:25.6]} 46. Ke6 {[%clk 0:00:04.4]} 46... Rb8 {[%clk 0:00:24.7]} 47. Rh7
{[%clk 0:00:03.6]} 47... Rb6+ {[%clk 0:00:25.2]} 48. Kf5 {[%clk 0:00:03.9]}
48... Rb2 {[%clk 0:00:25.1]} 49. e6 {[%clk 0:00:04.1]} 49... Rf2+ {[%clk
0:00:24.2]} 50. Ke5 {[%clk 0:00:04.2]} 50... Kd8 {[%clk 0:00:24.6]} 51. Rh8+
{[%clk 0:00:04.2]} 51... Kc7 {[%clk 0:00:25.1]} 52. e7 {[%clk 0:00:04.4]} 52...
Re2+ {[%clk 0:00:25.6]} 53. Kf5 {[%clk 0:00:04]} 53... Kd7 {[%clk 0:00:23]} 54.
e8=Q+ {[%clk 0:00:03.9]} 54... Rxe8 {[%clk 0:00:23.9]} 55. Rxe8 {[%clk
0:00:04.1]} 55... Kxe8 {[%clk 0:00:24.8]} 56. Ke6 {[%clk 0:00:04.9]} 56... Bc1
{[%clk 0:00:24.1]} 57. g4 {[%clk 0:00:04.8]} 57... Bd2 {[%clk 0:00:23.8]} 58.
Kf6 {[%clk 0:00:05]} 58... Bc3+ {[%clk 0:00:23.2]} 59. Ke6 {[%clk 0:00:04.9]}
59... Bd2 {[%clk 0:00:24.1]} 60. Nh4 {[%clk 0:00:05]} 60... Kf8 {[%clk
0:00:22.1]} 61. Nf3 {[%clk 0:00:05.3]} 61... Bc1 {[%clk 0:00:21.7]} 62. Kf6
{[%clk 0:00:05.5]} 62... Bb2+ {[%clk 0:00:14.4]} 63. Kg6 {[%clk 0:00:06.4]}
63... Bc1 {[%clk 0:00:15.3]} 64. Nh4 {[%clk 0:00:06.9]} 64... Ke7 {[%clk
0:00:12]} 65. Nf5+ {[%clk 0:00:07.8]} 65... Ke6 {[%clk 0:00:12.9]} 66. Nxh6
{[%clk 0:00:08.1]} 66... Ke5 {[%clk 0:00:13.8]} 67. Nf7+ {[%clk 0:00:07.8]}
67... Kf4 {[%clk 0:00:14.4]} 68. g5 {[%clk 0:00:08.2]} 68... Kg4 {[%clk
0:00:15.2]} 69. h6 {[%clk 0:00:08.7]} 69... Bb2 {[%clk 0:00:16]} 70. h7 {[%clk
0:00:09.2]} 70... Bc3 {[%clk 0:00:16.7]} 71. h8=Q {[%clk 0:00:09.6]} 71... Bxh8
{[%clk 0:00:17.6]} 72. Nxh8 {[%clk 0:00:10.3]} 1-0

[Event "Early-Titled-Tuesday-Blitz-May-14-2024"]
[Site "Chess.com"]
[Date "2024.05.14"]
[Round "9"]
[White "alexrustemov"]
[Black "MyDream003"]
[Result "1/2-1/2"]
[WhiteElo "2921"]
[BlackElo "2842"]
[TimeControl "180+1"]
[EndTime "9:48:21 PDT"]
[Termination "Game drawn by repetition"]

1. d4 {[%clk 0:03:00.9]} 1... d5 {[%clk 0:02:59.4]} 2. c4 {[%clk 0:03:00.4]}
2... e6 {[%clk 0:02:59.1]} 3. cxd5 {[%clk 0:03:00.3]} 3... exd5 {[%clk 0:02:56]}
4. Nf3 {[%clk 0:03:00.4]} 4... Nf6 {[%clk 0:02:56.1]} 5. Nc3 {[%clk 0:03:00.8]}
5... c6 {[%clk 0:02:55.1]} 6. Bf4 {[%clk 0:03:00.7]} 6... Bf5 {[%clk 0:02:54.6]}
7. e3 {[%clk 0:03:00.1]} 7... Be7 {[%clk 0:02:52.9]} 8. Nh4 {[%clk 0:02:59.5]}
8... Be6 {[%clk 0:02:52.5]} 9. Bd3 {[%clk 0:02:59.6]} 9... Nbd7 {[%clk
0:02:52.6]} 10. h3 {[%clk 0:02:58.8]} 10... Qb6 {[%clk 0:02:50.1]} 11. Rb1
{[%clk 0:02:55.7]} 11... h6 {[%clk 0:02:49]} 12. Nf3 {[%clk 0:02:55]} 12... Qa5
{[%clk 0:02:43.2]} 13. O-O {[%clk 0:02:53.7]} 13... O-O {[%clk 0:02:42.2]} 14.
Qc2 {[%clk 0:02:52.2]} 14... Rac8 {[%clk 0:02:41.2]} 15. Rfc1 {[%clk 0:02:49.9]}
15... b5 {[%clk 0:02:38.9]} 16. Ne5 {[%clk 0:02:41]} 16... a6 {[%clk 0:02:19.1]}
17. Nxd7 {[%clk 0:02:04.9]} 17... Nxd7 {[%clk 0:02:19.7]} 18. Qd1 {[%clk
0:01:49.3]} 18... Qb6 {[%clk 0:02:12.6]} 19. Rc2 {[%clk 0:01:45.9]} 19... c5
{[%clk 0:02:11.8]} 20. dxc5 {[%clk 0:01:45.1]} 20... Nxc5 {[%clk 0:02:11.8]} 21.
Be5 {[%clk 0:01:36.6]} 21... b4 {[%clk 0:02:01]} 22. Ne2 {[%clk 0:01:36.1]}
22... Bd7 {[%clk 0:01:50]} 23. Bd4 {[%clk 0:01:31]} 23... Qa5 {[%clk 0:01:43.3]}
24. b3 {[%clk 0:01:21]} 24... Nxd3 {[%clk 0:01:41.4]} 25. Qxd3 {[%clk
0:01:20.9]} 25... Rxc2 {[%clk 0:01:32.1]} 26. Qxc2 {[%clk 0:01:21]} 26... Rc8
{[%clk 0:01:32.9]} 27. Qd2 {[%clk 0:01:20.8]} 27... Bf5 {[%clk 0:01:27.6]} 28.
Rc1 {[%clk 0:01:18.8]} 28... Rxc1+ {[%clk 0:01:27.5]} 29. Nxc1 {[%clk
0:01:18.8]} 29... Qc7 {[%clk 0:01:26.3]} 30. Nd3 {[%clk 0:01:08.9]} 30... a5
{[%clk 0:01:26.3]} 31. Nf4 {[%clk 0:01:05.9]} 31... Qc6 {[%clk 0:01:12.8]} 32.
Bb2 {[%clk 0:01:04.1]} 32... Qc2 {[%clk 0:00:46.7]} 33. Qxc2 {[%clk 0:01:00.7]}
33... Bxc2 {[%clk 0:00:47.6]} 34. Nxd5 {[%clk 0:01:01.2]} 34... Bd8 {[%clk
0:00:48.2]} 35. Kf1 {[%clk 0:00:43.9]} 35... Bb1 {[%clk 0:00:46.9]} 36. a3
{[%clk 0:00:43.9]} 36... Ba2 {[%clk 0:00:24.4]} 37. axb4 {[%clk 0:00:38.4]}
37... Bxb3 {[%clk 0:00:23]} 38. e4 {[%clk 0:00:36.8]} 38... Bxd5 {[%clk
0:00:17.6]} 39. exd5 {[%clk 0:00:36.9]} 39... axb4 {[%clk 0:00:18.5]} 40. Ke2
{[%clk 0:00:36.4]} 40... Kf8 {[%clk 0:00:11.7]} 41. Kd3 {[%clk 0:00:36.8]} 41...
Be7 {[%clk 0:00:10]} 42. Kc4 {[%clk 0:00:36.2]} 42... f6 {[%clk 0:00:09.5]} 43.
Bc1 {[%clk 0:00:34.5]} 43... Ke8 {[%clk 0:00:07.4]} 44. Bd2 {[%clk 0:00:34.9]}
44... f5 {[%clk 0:00:06.6]} 45. Bxb4 {[%clk 0:00:34.8]} 45... Bh4 {[%clk
0:00:07.1]} 46. f3 {[%clk 0:00:32.4]} 46... Kd7 {[%clk 0:00:07.2]} 47. g4 {[%clk
0:00:29.7]} 47... g6 {[%clk 0:00:07.6]} 48. Bd2 {[%clk 0:00:28.8]} 48... h5
{[%clk 0:00:07.9]} 49. gxh5 {[%clk 0:00:26.5]} 49... gxh5 {[%clk 0:00:08.8]} 50.
Bf4 {[%clk 0:00:26.4]} 50... Bf6 {[%clk 0:00:08.8]} 51. Kc5 {[%clk 0:00:19.9]}
51... Bb2 {[%clk 0:00:05.7]} 52. d6 {[%clk 0:00:19.5]} 52... Bc3 {[%clk
0:00:06.2]} 53. Kd5 {[%clk 0:00:19.5]} 53... Bb2 {[%clk 0:00:06.4]} 54. Be5
{[%clk 0:00:19.9]} 54... Bc1 {[%clk 0:00:06.7]} 55. Bg3 {[%clk 0:00:16.3]} 55...
Bb2 {[%clk 0:00:06.9]} 56. Bh2 {[%clk 0:00:16.2]} 56... Bc3 {[%clk 0:00:06.9]}
57. Be5 {[%clk 0:00:15.2]} 57... Bd2 {[%clk 0:00:06.9]} 58. Bd4 {[%clk
0:00:13.4]} 58... Bf4 {[%clk 0:00:06.9]} 59. Bc5 {[%clk 0:00:12.9]} 59... Bg3
{[%clk 0:00:07]} 60. Bb4 {[%clk 0:00:12.3]} 60... Bf4 {[%clk 0:00:07.3]} 61. Bc5
{[%clk 0:00:11.2]} 61... Bg3 {[%clk 0:00:07.6]} 62. Ba3 {[%clk 0:00:11.5]} 62...
Bf4 {[%clk 0:00:08]} 63. Bc5 {[%clk 0:00:10.4]} 1/2-1/2

[Event "Early-Titled-Tuesday-Blitz-May-14-2024"]
[Site "Chess.com"]
[Date "2024.05.14"]
[Round "9"]
[White "Arhan_Anand"]
[Black "SaiHanThiha"]
[Result "0-1"]
[WhiteElo "2625"]
[BlackElo "2486"]
[TimeControl "180+1"]
[EndTime "9:48:25 PDT"]
[Termination "SaiHanThiha won by resignation"]

1. d4 {[%clk 0:03:00.9]} 1... Nf6 {[%clk 0:03:00]} 2. c4 {[%clk 0:03:00.6]} 2...
e6 {[%clk 0:03:00.5]} 3. Nf3 {[%clk 0:02:59.7]} 3... Bb4+ {[%clk 0:03:00.9]} 4.
Bd2 {[%clk 0:02:59]} 4... Qe7 {[%clk 0:03:01.3]} 5. g3 {[%clk 0:02:57.7]} 5...
Nc6 {[%clk 0:02:59.7]} 6. Bg2 {[%clk 0:02:54.8]} 6... Bxd2+ {[%clk 0:02:57.1]}
7. Qxd2 {[%clk 0:02:54]} 7... Ne4 {[%clk 0:02:55.7]} 8. Qc2 {[%clk 0:02:50.6]}
8... Qb4+ {[%clk 0:02:55.6]} 9. Nc3 {[%clk 0:02:46.3]} 9... Nxc3 {[%clk
0:02:51.5]} 10. bxc3 {[%clk 0:02:47.2]} 10... Qxc4 {[%clk 0:02:50.8]} 11. e4
{[%clk 0:02:39.7]} 11... Nb4 {[%clk 0:02:44.3]} 12. Qd2 {[%clk 0:02:36.4]} 12...
Nd3+ {[%clk 0:02:33.3]} 13. Kd1 {[%clk 0:02:35.4]} 13... d5 {[%clk 0:02:28.9]}
14. e5 {[%clk 0:02:19.2]} 14... Bd7 {[%clk 0:02:26.6]} 15. Bf1 {[%clk
0:01:34.8]} 15... Ba4+ {[%clk 0:02:23.7]} 16. Ke2 {[%clk 0:01:35.2]} 16... Nxe5+
{[%clk 0:00:51.2]} 17. Ke3 {[%clk 0:01:34.2]} 17... Nxf3 {[%clk 0:00:51.1]} 18.
Kxf3 {[%clk 0:01:35.1]} 18... Qc6 {[%clk 0:00:50.7]} 19. Rb1 {[%clk 0:01:32.9]}
19... a6 {[%clk 0:00:50.2]} 20. Bd3 {[%clk 0:01:25.3]} 20... Bb5 {[%clk
0:00:48.7]} 21. Rhc1 {[%clk 0:01:25.8]} 21... O-O {[%clk 0:00:47]} 22. Kg2
{[%clk 0:01:14.1]} 22... Rfe8 {[%clk 0:00:41.9]} 23. Bc2 {[%clk 0:01:12.2]}
23... e5 {[%clk 0:00:40.6]} 24. Re1 {[%clk 0:00:56.2]} 24... e4 {[%clk
0:00:37.9]} 25. Re3 {[%clk 0:00:54.9]} 25... Bc4 {[%clk 0:00:36.6]} 26. Rb2
{[%clk 0:00:53.7]} 26... f5 {[%clk 0:00:36.1]} 27. Re1 {[%clk 0:00:52.7]} 27...
b5 {[%clk 0:00:32.4]} 28. Qf4 {[%clk 0:00:49.4]} 28... Qd7 {[%clk 0:00:32.6]}
29. Bd1 {[%clk 0:00:47.8]} 29... Rf8 {[%clk 0:00:27.5]} 30. h4 {[%clk
0:00:44.3]} 30... Qd6 {[%clk 0:00:26.9]} 31. Qxd6 {[%clk 0:00:40.5]} 31... cxd6
{[%clk 0:00:26.9]} 32. f4 {[%clk 0:00:41.4]} 32... a5 {[%clk 0:00:20.4]} 33. Re3
{[%clk 0:00:40.9]} 33... Rfb8 {[%clk 0:00:20.5]} 34. a3 {[%clk 0:00:39.1]} 34...
Rb6 {[%clk 0:00:17.4]} 35. g4 {[%clk 0:00:29.4]} 35... g6 {[%clk 0:00:16.5]} 36.
gxf5 {[%clk 0:00:29.3]} 36... gxf5 {[%clk 0:00:17.4]} 37. Bh5 {[%clk 0:00:29.3]}
37... Kg7 {[%clk 0:00:17.8]} 38. Kh3 {[%clk 0:00:22.6]} 38... Kf6 {[%clk
0:00:17]} 39. Kh2 {[%clk 0:00:21.9]} 39... Rg8 {[%clk 0:00:15.6]} 40. Be2 {[%clk
0:00:18.8]} 40... Rc8 {[%clk 0:00:14.1]} 41. Bh5 {[%clk 0:00:18.3]} 41... Bd3
{[%clk 0:00:14]} 42. Rg2 {[%clk 0:00:15.1]} 42... Rxc3 {[%clk 0:00:13.8]} 43.
Rg8 {[%clk 0:00:15.3]} 43... Rc2+ {[%clk 0:00:12.9]} 44. Kh1 {[%clk 0:00:14.9]}
44... Rc1+ {[%clk 0:00:11.5]} 45. Kh2 {[%clk 0:00:14.1]} 45... Rbc6 {[%clk
0:00:12.1]} 46. Rf8+ {[%clk 0:00:13.4]} 46... Ke7 {[%clk 0:00:11.5]} 47. Rf7+
{[%clk 0:00:13.7]} 47... Kd8 {[%clk 0:00:12.1]} 48. Rg3 {[%clk 0:00:06]} 48...
R6c2+ {[%clk 0:00:12.2]} 49. Rg2 {[%clk 0:00:06.7]} 49... Rxg2+ {[%clk
0:00:10.4]} 50. Kxg2 {[%clk 0:00:07.6]} 50... Ra1 {[%clk 0:00:09.8]} 51. Rxh7
{[%clk 0:00:07.4]} 51... Rxa3 {[%clk 0:00:09.3]} 52. Bf7 {[%clk 0:00:08]} 52...
Bc4 {[%clk 0:00:09]} 53. h5 {[%clk 0:00:07.8]} 53... Ra2+ {[%clk 0:00:09.3]} 54.
Kh1 {[%clk 0:00:06.7]} 54... e3 {[%clk 0:00:09.6]} 55. Rh8+ {[%clk 0:00:05.6]}
55... Ke7 {[%clk 0:00:09.1]} 56. Bg6 {[%clk 0:00:06.3]} 56... e2 {[%clk
0:00:08.1]} 57. Re8+ {[%clk 0:00:06.7]} 57... Kf6 {[%clk 0:00:08.6]} 58. Kg1
{[%clk 0:00:07.2]} 58... Ra1+ {[%clk 0:00:07.2]} 59. Kf2 {[%clk 0:00:05.9]}
59... Rf1+ {[%clk 0:00:07.6]} 60. Kg3 {[%clk 0:00:06.2]} 60... e1=Q+ {[%clk
0:00:08.1]} 61. Rxe1 {[%clk 0:00:04.7]} 61... Rxe1 {[%clk 0:00:09]} 0-1

[Event "Early-Titled-Tuesday-Blitz-May-14-2024"]
[Site "Chess.com"]
[Date "2024.05.14"]
[Round "9"]
[White "vugarrasulov"]
[Black "David_Arutinian"]
[Result "0-1"]
[WhiteElo "2971"]
[BlackElo "2851"]
[TimeControl "180+1"]
[EndTime "9:48:29 PDT"]
[Termination "David_Arutinian won by checkmate"]

1. c4 {[%clk 0:03:00.9]} 1... e5 {[%clk 0:02:59.6]} 2. Nc3 {[%clk 0:03:01.2]}
2... Nf6 {[%clk 0:03:00.1]} 3. d3 {[%clk 0:03:00.8]} 3... Nc6 {[%clk 0:02:59.5]}
4. Nf3 {[%clk 0:02:59.5]} 4... d5 {[%clk 0:02:59.7]} 5. cxd5 {[%clk 0:02:59.2]}
5... Nxd5 {[%clk 0:03:00.6]} 6. e4 {[%clk 0:02:59.5]} 6... Nf6 {[%clk 0:03:01]}
7. Be2 {[%clk 0:02:54.7]} 7... Bc5 {[%clk 0:03:01]} 8. O-O {[%clk 0:02:54.2]}
8... O-O {[%clk 0:03:01]} 9. Be3 {[%clk 0:02:54.2]} 9... Bb6 {[%clk 0:03:01.1]}
10. Rc1 {[%clk 0:02:51.7]} 10... Bg4 {[%clk 0:03:01.1]} 11. Nd2 {[%clk
0:02:48.8]} 11... Be6 {[%clk 0:02:59.5]} 12. a3 {[%clk 0:02:44]} 12... Nd4
{[%clk 0:02:58.1]} 13. Nc4 {[%clk 0:02:41.6]} 13... Bxc4 {[%clk 0:02:50]} 14.
dxc4 {[%clk 0:02:42.5]} 14... c6 {[%clk 0:02:48]} 15. b4 {[%clk 0:02:38.4]}
15... Nxe2+ {[%clk 0:02:46.9]} 16. Qxe2 {[%clk 0:02:38.2]} 16... Bxe3 {[%clk
0:02:47.4]} 17. Qxe3 {[%clk 0:02:37.2]} 17... Qe7 {[%clk 0:02:47.9]} 18. c5
{[%clk 0:02:30.1]} 18... Ne8 {[%clk 0:02:47.2]} 19. Rfd1 {[%clk 0:02:28.2]}
19... Nc7 {[%clk 0:02:47.1]} 20. h3 {[%clk 0:02:27.7]} 20... Rfd8 {[%clk
0:02:44.1]} 21. Ne2 {[%clk 0:02:26.7]} 21... Ne6 {[%clk 0:02:44.2]} 22. Rd2
{[%clk 0:02:20.5]} 22... Rxd2 {[%clk 0:02:43.6]} 23. Qxd2 {[%clk 0:02:21.4]}
23... Rd8 {[%clk 0:02:43.9]} 24. Qc3 {[%clk 0:02:21.1]} 24... Qg5 {[%clk
0:02:34.7]} 25. Ng3 {[%clk 0:02:10.2]} 25... g6 {[%clk 0:02:33.4]} 26. Rf1
{[%clk 0:02:05.1]} 26... h5 {[%clk 0:02:32.2]} 27. Re1 {[%clk 0:01:54.2]} 27...
Nf4 {[%clk 0:02:31]} 28. h4 {[%clk 0:01:47.9]} 28... Qe7 {[%clk 0:02:22.3]} 29.
Nf1 {[%clk 0:01:34]} 29... Qxh4 {[%clk 0:02:12.9]} 30. g3 {[%clk 0:01:27.3]}
30... Qg5 {[%clk 0:02:09.2]} 31. Ne3 {[%clk 0:01:15.2]} 31... h4 {[%clk
0:02:03.5]} 32. g4 {[%clk 0:01:15]} 32... h3 {[%clk 0:02:02.8]} 33. Kh2 {[%clk
0:01:03.8]} 33... Nd3 {[%clk 0:01:51]} 34. Rf1 {[%clk 0:00:46.6]} 34... Qf4+
{[%clk 0:01:46.3]} 35. Kg1 {[%clk 0:00:44.1]} 35... h2+ {[%clk 0:01:30.8]} 36.
Kg2 {[%clk 0:00:42.1]} 36... Qxe4+ {[%clk 0:01:29.9]} 37. Kxh2 {[%clk
0:00:39.9]} 37... Kg7 {[%clk 0:01:14.5]} 38. Ng2 {[%clk 0:00:38.2]} 38... Qxg4
{[%clk 0:01:09.6]} 39. Kg1 {[%clk 0:00:33.4]} 39... Rd4 {[%clk 0:00:59]} 40. f3
{[%clk 0:00:28.4]} 40... Qg3 {[%clk 0:00:58.6]} 41. f4 {[%clk 0:00:20.4]} 41...
Re4 {[%clk 0:00:27.9]} 42. fxe5 {[%clk 0:00:15.4]} 42... Kg8 {[%clk 0:00:23]}
43. e6 {[%clk 0:00:13.7]} 43... Rxe6 {[%clk 0:00:21.6]} 44. Qd4 {[%clk
0:00:11.6]} 44... Ne5 {[%clk 0:00:17.3]} 45. Qd8+ {[%clk 0:00:10]} 45... Kg7
{[%clk 0:00:17.8]} 46. Qd4 {[%clk 0:00:10.5]} 46... f6 {[%clk 0:00:17.8]} 47.
Qe3 {[%clk 0:00:08.5]} 47... Qxe3+ {[%clk 0:00:15.9]} 48. Nxe3 {[%clk
0:00:09.4]} 48... Re7 {[%clk 0:00:15.6]} 49. Kg2 {[%clk 0:00:08.9]} 49... Rd7
{[%clk 0:00:15.9]} 50. Re1 {[%clk 0:00:06.9]} 50... Rd2+ {[%clk 0:00:14.7]} 51.
Kg3 {[%clk 0:00:07.3]} 51... Rd3 {[%clk 0:00:15.1]} 52. Kf4 {[%clk 0:00:07.8]}
52... Rxa3 {[%clk 0:00:14.5]} 53. Ke4 {[%clk 0:00:08]} 53... Rb3 {[%clk
0:00:14.4]} 54. Nc2 {[%clk 0:00:07.6]} 54... Rc3 {[%clk 0:00:13.9]} 55. Re2
{[%clk 0:00:08]} 55... Rc4+ {[%clk 0:00:13.5]} 56. Ke3 {[%clk 0:00:07.2]} 56...
f5 {[%clk 0:00:14]} 57. Kd2 {[%clk 0:00:06.6]} 57... Kf6 {[%clk 0:00:13.5]} 58.
Kd1 {[%clk 0:00:03.4]} 58... g5 {[%clk 0:00:12.9]} 59. Rh2 {[%clk 0:00:04]}
59... g4 {[%clk 0:00:13]} 60. Rh7 {[%clk 0:00:04.3]} 60... g3 {[%clk 0:00:12.9]}
61. Ne3 {[%clk 0:00:04.1]} 61... Rd4+ {[%clk 0:00:12.5]} 62. Ke2 {[%clk
0:00:04.3]} 62... f4 {[%clk 0:00:12.5]} 63. Nc2 {[%clk 0:00:02.1]} 63... f3+
{[%clk 0:00:12.1]} 64. Ke3 {[%clk 0:00:02.5]} 64... Rg4 {[%clk 0:00:12]} 65.
Rh6+ {[%clk 0:00:01.3]} 65... Kg7 {[%clk 0:00:11.7]} 66. Rh1 {[%clk 0:00:01.8]}
66... g2 {[%clk 0:00:12.1]} 67. Rg1 {[%clk 0:00:02.4]} 67... Kf6 {[%clk
0:00:11.2]} 68. Ne1 {[%clk 0:00:02.9]} 68... Kf5 {[%clk 0:00:08.8]} 69. Kf2
{[%clk 0:00:02.3]} 69... Kf4 {[%clk 0:00:08.1]} 70. Nc2 {[%clk 0:00:01.7]} 70...
Nd3# {[%clk 0:00:08.2]} 0-1